bitfinex/quotes_ETHUSD_20220213
["timestamp","ask_amount","ask_price","bid_price","bid_amount"]
[1644738315307,0.1711,2920.4,2919.4,0.25]
[1644738315554,0.1711,2920.4,2920.2,0.01088848]
[1644738316356,0.21820747,2920.4,2920.2,0.01088848]
[1644738316555,0.21703068,2920.4,2919.4,0.25]
[1644738316755,0.21703068,2920.4,2920.2,0.01088848]
[1644738317757,0.21703068,2920.4,2919.4,1.2872964]
[1644738317963,0.21703068,2920.4,2920.2,0.01088848]
[1644738318162,5.21703068,2920.4,2920.2,0.01088848]
[1644738318361,1.95288505,2920.3,2920.2,0.01088848]
[1644738318760,1.95288505,2920.3,2919.4,0.25]
[1644738318761,4.1,2920.2,2919.4,0.25]
[1644738318963,5.0,2920.0,2918.2,4.94578973]
[1644738319210,7.29067568,2919.9,2918.7,0.25]
[1644738319407,0.72956449,2919.4,2918.7,0.25]
[1644738319609,1.45912898,2919.4,2918.7,0.25]
[1644738319809,1.45912898,2919.4,2918.3,2.05310573]
[1644738320210,1.45912898,2919.4,2918.8,0.18139067]
[1644738322814,1.45912898,2919.4,2919.0,0.01089016]
[1644738323858,1.45912898,2919.4,2918.9,4.13152436]
[1644738324056,1.45912898,2919.4,2919.1,0.01089002]
[1644738324461,0.72956449,2919.4,2919.1,0.01089002]
[1644738324660,0.72956449,2919.2,2919.1,0.01089002]
[1644738324960,0.72956449,2919.2,2919.0,0.1712]
[1644738325161,0.72956449,2919.2,2919.0,0.18209009]
[1644738326158,0.72956449,2919.2,2919.0,0.1712]
[1644738326363,0.72956449,2919.2,2919.0,0.01089016]
[1644738326816,0.72956449,2919.2,2919.1,0.496]
[1644738327016,0.04104644,2919.3,2919.2,4.1]
[1644738327212,0.04104644,2919.3,2919.2,8.20322298]
[1644738327413,0.04104644,2919.3,2919.2,8.50322298]
[1644738327813,0.04104644,2919.3,2919.2,9.50322298]
[1644738328212,0.04104644,2919.3,2919.2,8.50322298]
[1644738329918,0.04104644,2919.3,2919.2,9.50322298]
[1644738330118,0.04104644,2919.3,2919.2,8.20322298]
[1644738330320,0.77061093,2919.3,2919.2,8.20322298]
[1644738330554,0.77061093,2919.3,2919.2,0.496]
[1644738330955,4.17061093,2919.3,2919.2,0.496]
[1644738331156,4.17061093,2919.3,2919.2,0.796]
[1644738332260,3.13453728,2919.3,2919.2,4.44167976]
[1644738332459,0.1711,2920.4,2919.5,0.85611]
[1644738332659,4.6794,2920.6,2919.5,0.85611]
[1644738332859,1.45670284,2920.5,2919.5,0.85611]
[1644738333060,4.63317804,2920.5,2919.5,0.62884358]
[1644738333259,1.45670284,2920.4,2919.5,0.62884358]
[1644738333459,0.1711,2920.3,2919.5,0.62884358]
[1644738333658,0.1711,2920.3,2919.9,0.0108889]
[1644738333862,4.5083,2920.6,2919.9,0.0108889]
[1644738333863,0.1711,2920.4,2919.9,0.0108889]
[1644738334063,1.45672121,2920.3,2919.9,0.0108889]
[1644738334308,0.1711,2920.5,2919.9,0.0108889]
[1644738334609,1.45672565,2920.4,2919.5,0.62884358]
[1644738334808,0.1711,2920.3,2920.0,0.01021364]
[1644738335308,4.5083,2920.6,2920.0,0.01021364]
[1644738335509,1.45669124,2920.5,2920.0,0.01021364]
[1644738335707,1.45669124,2920.5,2919.5,0.62884358]
[1644738336108,1.45669124,2920.5,2920.1,0.01021361]
[1644738337007,1.45669124,2920.5,2919.5,0.62884358]
[1644738337216,1.45669124,2920.5,2920.1,0.01021371]
[1644738338256,1.45669124,2920.5,2919.5,0.62884358]
[1644738338456,1.45669124,2920.5,2920.1,0.01021371]
[1644738338657,1.62779124,2920.5,2920.1,0.01021371]
[1644738338857,1.45669124,2920.4,2920.1,0.01021371]
[1644738339460,1.45669124,2920.4,2919.5,0.62884358]
[1644738339659,1.45669124,2920.4,2920.1,0.01025884]
[1644738340661,1.45669124,2920.4,2919.5,0.62884358]
[1644738340861,1.45669124,2920.4,2920.1,0.01025884]
[1644738341715,1.45669124,2920.4,2919.5,0.1711]
[1644738342106,1.45669124,2920.4,2920.1,0.01025884]
[1644738342710,4.85669124,2920.4,2920.1,0.01025884]
[1644738342906,1.45669124,2920.3,2919.5,0.1711]
[1644738343306,1.45669124,2920.3,2920.1,0.01025581]
[1644738344125,1.45669124,2920.3,2919.8,0.8561]
[1644738344516,1.45669124,2920.3,2920.1,0.0102557]
[1644738344913,3.4,2920.4,2920.1,0.0102557]
[1644738345557,3.4,2920.4,2919.8,0.8561]
[1644738345756,3.4,2920.4,2920.1,0.01025581]
[1644738346656,3.4,2920.4,2919.8,0.8561]
[1644738346859,3.4,2920.4,2920.1,0.01025601]
[1644738347864,3.4,2920.4,2919.8,0.8561]
[1644738348068,3.4,2920.4,2920.1,0.01025601]
[1644738348266,3.4,2920.4,2920.1,3.75029059]
[1644738348466,3.4,2920.4,2920.1,0.01025601]
[1644738349065,3.4,2920.4,2920.0,0.85599]
[1644738349313,3.4,2920.4,2920.1,0.18135601]
[1644738349515,3.4,2920.4,2920.1,0.01025601]
[1644738350214,3.4,2920.4,2919.9,0.1711]
[1644738350414,3.4,2920.4,2920.1,0.010256]
[1644738351413,3.4,2920.4,2919.9,0.1711]
[1644738351714,3.4,2920.4,2920.1,0.010256]
[1644738352716,3.4,2920.4,2919.9,0.1711]
[1644738352953,3.4,2920.4,2920.1,0.010256]
[1644738353755,3.4,2920.4,2919.8,3.23517]
[1644738354155,3.39868982,2920.4,2920.1,0.010256]
[1644738355064,3.39868982,2920.4,2920.0,0.85597]
[1644738355259,3.39868982,2920.4,2920.1,0.010256]
[1644738356158,3.39868982,2920.4,2920.0,0.85597]
[1644738356560,3.39868982,2920.4,2920.1,0.010256]
[1644738357406,3.39868982,2920.4,2920.0,0.85597]
[1644738357609,3.39868982,2920.4,2920.1,0.010256]
[1644738358609,3.39868982,2920.4,2920.0,0.85597]
[1644738358812,3.39868982,2920.4,2920.1,0.010256]
[1644738359414,3.39868982,2920.4,2920.1,0.866236]
[1644738359816,3.39868982,2920.4,2920.1,0.85598]
[1644738360015,3.39868982,2920.4,2920.1,0.866236]
[1644738360861,3.39868982,2920.4,2920.2,0.496]
[1644738361658,3.39868982,2920.4,2920.2,20.506]
[1644738361860,3.39868982,2920.4,2920.3,0.10925933]
[1644738362058,3.39868982,2920.4,2920.3,0.496]
[1644738365815,3.39868982,2920.4,2920.3,0.52865074]
[1644738366616,3.39868982,2920.4,2920.3,0.63639399]
[1644738366815,3.39868982,2920.4,2920.3,0.52713466]
[1644738370678,3.39868982,2920.4,2920.3,0.496]
[1644738371073,3.39868982,2920.4,2920.3,0.66809129]
[1644738377162,3.27870494,2920.4,2920.3,0.66809129]
[1644738378865,3.27870494,2920.4,2920.3,0.17209129]
[1644738381918,3.27870494,2920.4,2920.1,3.73270487]
[1644738382718,3.27870494,2920.4,2920.1,3.72296377]
[1644738382962,3.27870494,2920.4,2920.1,3.73270471]
[1644738383768,3.27870494,2920.4,2920.2,1.3]
[1644738384164,3.27870494,2920.4,2920.2,1.47209129]
[1644738384969,3.27870494,2920.4,2920.2,1.58135062]
[1644738388214,3.27870494,2920.4,2920.3,0.496]
[1644738388714,3.27870494,2920.4,2920.3,0.796]
[1644738389318,3.27870494,2920.4,2920.3,4.07752866]
[1644738389718,3.27870494,2920.4,2920.3,5.07752866]
[1644738392162,0.03139979,2920.7,2920.5,20.01]
[1644738392363,0.03139979,2920.7,2920.6,6.16058364]
[1644738392563,0.03139979,2920.7,2920.6,26.64267493]
[1644738393161,0.03139979,2920.7,2920.6,6.63267493]
[1644738393361,0.03139979,2920.7,2920.6,6.5234156]
[1644738393561,0.03139979,2920.7,2920.6,5.6677156]
[1644738394420,0.08157512,2921.4,2920.7,2.35]
[1644738394621,1.46016722,2921.3,2920.8,3.66078494]
[1644738394819,1.46016722,2921.3,2920.9,1.0]
[1644738395423,1.46016722,2921.3,2920.8,1.096]
[1644738395821,1.46016722,2921.3,2920.8,2.096]
[1644738396022,1.45632571,2921.2,2920.9,0.0035922]
[1644738396223,1.45632571,2921.1,2920.9,0.0035922]
[1644738396521,1.45632571,2921.0,2920.9,0.0035922]
[1644738396922,0.00384151,2921.4,2920.9,0.0035922]
[1644738397122,0.00384151,2921.4,2920.8,1.096]
[1644738397321,0.010354,2921.3,2920.8,1.10635593]
[1644738397521,1.45632571,2921.2,2920.8,0.50635593]
[1644738398260,1.45632571,2921.2,2920.8,0.496]
[1644738398461,1.45632571,2921.1,2920.9,0.01035586]
[1644738398659,1.45632571,2921.0,2920.9,0.01035586]
[1644738399564,1.45632571,2921.1,2920.7,3.07295045]
[1644738399764,1.45632571,2921.0,2920.8,0.01033388]
[1644738399964,1.45632571,2920.9,2920.8,0.01033388]
[1644738400164,1.45632571,2921.1,2920.8,0.01033388]
[1644738401720,1.45632571,2921.1,2920.8,1.86609388]
[1644738401924,3.4,2921.2,2920.9,5.38229]
[1644738402118,3.4,2921.2,2921.1,0.85553]
[1644738402317,3.4,2921.2,2921.1,1.76078933]
[1644738402515,3.4,2921.2,2921.1,1.93288062]
[1644738403516,3.4,2921.2,2921.1,21.94288062]
[1644738404016,3.4,2921.2,2921.1,22.94288062]
[1644738405461,3.4,2921.2,2921.1,23.8195478]
[1644738407464,3.4,2921.2,2921.1,23.64745651]
[1644738408570,0.00384151,2921.8,2921.3,4.1]
[1644738408768,0.00384151,2921.8,2921.7,5.1425636]
[1644738408967,1.45589933,2921.9,2921.8,1.71058]
[1644738409226,1.45589933,2921.9,2921.8,5.65496983]
[1644738409416,1.45589933,2921.9,2921.8,6.65496983]
[1644738410520,1.45589933,2921.9,2921.8,4.94438983]
[1644738410717,1.45589933,2921.9,2921.8,1.496]
[1644738410919,0.00384151,2922.4,2921.8,0.496]
[1644738411521,0.65407967,2922.4,2921.8,0.496]
[1644738411920,2.109979,2922.4,2921.8,0.496]
[1644738412966,0.0103328,2922.2,2921.8,0.496]
[1644738413163,1.45589933,2922.1,2921.8,0.496]
[1644738413363,1.45974084,2922.1,2921.8,0.496]
[1644738414165,1.45589933,2922.0,2921.8,0.496]
[1644738414370,1.45589933,2922.0,2921.8,1.496]
[1644738414576,1.45589933,2922.0,2921.8,0.496]
[1644738415370,1.45589933,2921.9,2921.8,0.496]
[1644738416175,1.45589933,2921.9,2921.2,0.10919976]
[1644738416376,1.45589933,2921.9,2920.7,2.56648]
[1644738416377,1.5531565,2921.6,2920.8,0.4211]
[1644738416574,1.45974084,2921.5,2921.1,0.01056402]
[1644738417415,1.45974084,2921.5,2921.0,20.01]
[1644738417621,1.45974084,2921.5,2921.1,3.78825806]
[1644738417818,0.01031809,2921.4,2921.2,1.0]
[1644738418014,0.01031809,2921.4,2921.2,1.496]
[1644738418215,0.01031809,2921.4,2921.2,1.796]
[1644738418618,0.00384151,2921.5,2921.2,1.796]
[1644738418818,1.45611819,2921.5,2921.2,1.796]
[1644738419020,0.01031809,2921.4,2921.2,1.796]
[1644738419924,1.55699801,2921.6,2921.2,1.796]
[1644738420127,0.01031809,2921.4,2921.2,1.796]
[1644738420861,3.41031809,2921.4,2921.2,1.796]
[1644738421063,3.4,2921.4,2921.2,1.796]
[1644738421263,3.41032766,2921.4,2921.2,1.796]
[1644738421663,3.41032766,2921.4,2921.2,1.3]
[1644738422066,3.41032766,2921.4,2921.1,0.01032888]
[1644738422268,3.4,2921.4,2920.7,0.10921145]
[1644738422468,3.4,2921.4,2921.1,0.01032888]
[1644738422469,1.45625482,2921.3,2921.1,0.01032888]
[1644738423465,1.45625482,2921.3,2920.6,1.0]
[1644738423666,1.45625482,2921.3,2921.1,0.01032882]
[1644738424819,1.45625482,2921.3,2920.5,0.1711]
[1644738425018,1.45625482,2921.3,2921.1,0.01033485]
[1644738425821,1.45625482,2921.3,2920.5,0.1711]
[1644738426118,1.45625482,2921.3,2921.1,0.01033485]
[1644738427119,1.45625482,2921.3,2920.5,0.34319129]
[1644738427320,1.45625482,2921.3,2921.1,0.01033485]
[1644738428363,1.45625482,2921.3,2920.5,0.1711]
[1644738428563,1.45625482,2921.3,2921.1,0.01033468]
[1644738429468,1.45625482,2921.3,2920.5,0.1711]
[1644738429668,1.45625482,2921.3,2921.1,0.01033468]
[1644738430769,1.45625482,2921.3,2920.5,0.1711]
[1644738431072,1.45625482,2921.3,2921.1,0.01033468]
[1644738431273,3.41033329,2921.4,2921.3,0.00099363]
[1644738431469,4.86646003,2921.4,2921.3,0.00099363]
[1644738431720,3.41033329,2921.4,2921.3,0.00099363]
[1644738431920,3.4,2921.4,2921.3,0.00099363]
[1644738436371,3.39913937,2921.4,2921.3,3.21526797]
[1644738436578,3.39913937,2921.4,2921.3,5.31126797]
[1644738436970,3.39913937,2921.4,2921.3,5.59157942]
[1644738439418,3.39913937,2921.4,2921.3,5.59042401]
[1644738439621,3.39913937,2921.4,2921.3,25.60042401]
[1644738439820,3.39913937,2921.4,2921.3,5.59042401]
[1644738440018,3.39913937,2921.4,2921.3,5.48121256]
[1644738440321,3.39913937,2921.4,2921.3,25.60042401]
[1644738441222,3.34913937,2921.4,2921.3,25.60042401]
[1644738441820,3.34913937,2921.4,2921.3,5.41932401]
[1644738442821,3.34913937,2921.4,2921.3,3.82047942]
[1644738443871,3.34913937,2921.4,2921.3,23.83047942]
[1644738444070,3.34913937,2921.4,2921.3,24.13047942]
[1644738444269,3.34913937,2921.4,2921.3,25.43047942]
[1644738445577,3.34913937,2921.4,2921.3,25.43044982]
[1644738446950,3.34913937,2921.4,2921.3,5.42044982]
[1644738447150,3.29913937,2921.4,2921.3,25.32126797]
[1644738447456,3.29913937,2921.4,2921.3,21.21617548]
[1644738447653,3.29913937,2921.4,2921.3,22.21617548]
[1644738447858,3.29913937,2921.4,2921.3,0.00099363]
[1644738449950,4.75528124,2921.4,2921.3,0.00099363]
[1644738450565,4.77336113,2921.4,2921.3,0.00099363]
[1644738450965,4.73336113,2921.4,2921.3,0.00099363]
[1644738453372,3.27721926,2921.4,2921.3,0.00099363]
[1644738454443,4.73338338,2921.4,2921.3,0.00099363]
[1644738454643,3.27721926,2921.4,2921.3,0.00099363]
[1644738455844,4.73338542,2921.4,2921.3,0.00099363]
[1644738456050,3.27721926,2921.4,2921.3,0.00099363]
[1644738456246,4.73338662,2921.4,2921.3,0.00099363]
[1644738456751,3.27721926,2921.4,2921.3,0.00099363]
[1644738457146,4.73337674,2921.4,2921.3,0.00099363]
[1644738457347,3.27721926,2921.4,2921.3,0.00099363]
[1644738458363,4.73338603,2921.4,2921.3,0.00099363]
[1644738458569,3.27721926,2921.4,2921.3,0.00099363]
[1644738466868,3.27721926,2921.4,2921.3,3.07597861]
[1644738467071,3.27721926,2921.4,2921.3,3.37597861]
[1644738467270,3.27721926,2921.4,2921.3,4.67597861]
[1644738467469,3.27721926,2921.4,2921.3,0.60099363]
[1644738467671,3.27721926,2921.4,2921.3,1.60099363]
[1644738467873,3.27721926,2921.4,2921.3,3.40478244]
[1644738468071,3.27721926,2921.4,2921.3,1.60099363]
[1644738468273,3.27721926,2921.4,2921.3,0.60099363]
[1644738468473,3.27721926,2921.4,2921.3,1.60099363]
[1644738468875,3.27721926,2921.4,2921.3,0.60099363]
[1644738469080,3.27721926,2921.4,2921.3,0.30099363]
[1644738472323,3.27721926,2921.4,2921.3,3.45645581]
[1644738472523,3.27721926,2921.4,2921.3,4.06166485]
[1644738472719,3.27721926,2921.4,2921.3,5.06166485]
[1644738472971,3.27721926,2921.4,2921.3,4.95245581]
[1644738473564,3.27721926,2921.4,2921.3,4.91687735]
[1644738473765,3.27721926,2921.4,2921.3,1.79699363]
[1644738473965,3.2761746,2921.4,2921.3,5.02808843]
[1644738474166,3.2761746,2921.4,2921.3,4.02808843]
[1644738474374,3.2761746,2921.4,2921.3,5.02808843]
[1644738474566,3.2761746,2921.4,2921.3,25.03808843]
[1644738474766,3.2761746,2921.4,2921.3,25.14729747]
[1644738487973,3.2761746,2921.4,2921.3,0.60620267]
[1644738488168,3.2761746,2921.4,2921.3,0.00099363]
[1644738492520,4.73227007,2921.4,2921.3,0.00099363]
[1644738494622,3.2761746,2921.4,2921.3,0.00099363]
[1644738497372,4.73225502,2921.4,2921.3,0.00099363]
[1644738498374,4.73115244,2921.4,2921.3,0.00099363]
[1644738501128,3.27507202,2921.4,2921.3,0.00099363]
[1644738503268,3.27507202,2921.4,2921.3,3.139e-05]
[1644738512165,4.7311263,2921.4,2921.3,3.139e-05]
[1644738512367,3.27507202,2921.4,2921.3,3.139e-05]
[1644738518067,4.7311373,2921.4,2921.3,3.139e-05]
[1644738518666,3.27507202,2921.4,2921.3,3.139e-05]
[1644738519066,4.7311378,2921.4,2921.3,3.139e-05]
[1644738520780,3.27507202,2921.4,2921.3,3.139e-05]
[1644738521717,4.73116067,2921.4,2921.3,3.139e-05]
[1644738523214,3.75230785,2921.4,2921.3,3.139e-05]
[1644738523428,3.75230785,2921.4,2921.3,20.50603139]
[1644738523429,2.2962192,2921.4,2921.3,20.50603139]
[1644738523622,2.2962192,2921.4,2921.3,20.78733172]
[1644738523819,2.2962192,2921.4,2921.3,22.21524043]
[1644738524017,2.2962192,2921.4,2921.3,25.42799692]
[1644738524421,2.2962192,2921.4,2921.3,5.41799692]
[1644738524621,2.2962192,2921.4,2921.3,2.09603139]
[1644738524823,2.2962192,2921.4,2921.3,1.09603139]
[1644738525479,2.2962192,2921.4,2921.3,3.139e-05]
[1644738526072,3.75227336,2921.4,2921.3,3.139e-05]
[1644738543370,4.72987336,2921.4,2921.3,3.139e-05]
[1644738543570,4.72987336,2921.4,2920.5,0.00322485]
[1644738543571,4.1,2921.3,2920.5,0.00322485]
[1644738543773,4.2711,2921.3,2920.5,0.00322485]
[1644738543970,1.45605416,2921.2,2921.1,0.00361613]
[1644738544219,1.62715416,2921.2,2921.1,0.00361613]
[1644738544819,1.02763266,2920.7,2920.5,0.00322485]
[1644738545020,1.45605416,2920.6,2920.5,0.00322485]
[1644738545220,1.02763266,2920.7,2920.2,0.30322485]
[1644738545421,1.02763266,2920.7,2920.3,0.00322485]
[1644738546020,0.1711,2921.1,2920.3,0.00322485]
[1644738546221,1.45647089,2921.0,2920.3,0.00322485]
[1644738547521,0.89879131,2920.9,2920.5,0.00413215]
[1644738547723,1.45647089,2920.8,2920.5,0.00413215]
[1644738548366,1.45647089,2920.8,2920.3,0.00322485]
[1644738548767,1.45647089,2920.8,2920.5,0.0108931]
[1644738549573,1.45647089,2920.8,2920.3,0.00322485]
[1644738549772,1.45647089,2920.8,2920.0,0.00322485]
[1644738549972,1.45647089,2920.8,2920.5,0.0108931]
[1644738550773,1.45647089,2920.8,2920.0,0.00322485]
[1644738551172,1.45647089,2920.8,2920.5,0.0108931]
[1644738552117,1.45647089,2920.8,2920.0,0.00322485]
[1644738552415,1.45647089,2920.8,2920.5,0.0108931]
[1644738553215,1.45647089,2920.8,2919.8,0.00322485]
[1644738553419,1.45647089,2920.8,2919.9,0.1711]
[1644738553616,1.45647089,2920.8,2920.5,0.0108931]
[1644738553817,4.85647089,2920.8,2920.5,0.0108931]
[1644738554019,1.45647089,2920.7,2920.5,0.0108931]
[1644738554425,1.45647089,2920.7,2919.9,0.1711]
[1644738554620,1.45647089,2920.7,2920.0,0.00322485]
[1644738554821,1.45647089,2920.7,2920.5,0.01089317]
[1644738555668,1.45647089,2920.7,2920.0,0.00322485]
[1644738555872,1.47243468,2920.7,2920.5,0.01089317]
[1644738556171,0.01596379,2920.7,2920.5,0.01089317]
[1644738556976,0.01596379,2920.7,2919.8,0.00322485]
[1644738557171,0.01596379,2920.7,2920.5,0.01089317]
[1644738558174,0.01596379,2920.7,2919.8,0.00322485]
[1644738558375,0.01596379,2920.7,2920.5,0.01089317]
[1644738559219,0.01596379,2920.7,2919.8,0.00322485]
[1644738559422,0.01596379,2920.7,2919.9,0.1711]
[1644738559625,0.01596379,2920.7,2920.5,0.01089317]
[1644738560423,0.01596379,2920.7,2920.0,0.00322485]
[1644738560822,0.01596379,2920.7,2920.5,0.01089317]
[1644738561623,0.01596379,2920.7,2920.0,0.00322485]
[1644738561826,0.01596379,2920.7,2919.7,0.17432485]
[1644738562025,0.01596379,2920.7,2920.5,0.01089317]
[1644738562429,1.45665915,2920.6,2920.5,0.01089317]
[1644738562973,1.45665915,2920.6,2919.8,0.00322485]
[1644738563172,0.1711,2920.5,2920.4,0.01089324]
[1644738563375,0.02170698,2920.2,2919.8,0.00322485]
[1644738563571,0.69100698,2920.2,2919.8,0.00322485]
[1644738565277,1.1941787,2920.0,2919.8,0.00322485]
[1644738565676,1.1941787,2920.0,2919.4,0.00322485]
[1644738565875,0.02170698,2920.2,2919.2,0.00322485]
[1644738566076,0.02170698,2920.2,2919.3,0.00322485]
[1644738566718,0.02170698,2920.2,2919.6,0.00412406]
[1644738567821,0.02170698,2920.2,2919.3,0.00322485]
[1644738568023,0.02170698,2920.2,2919.8,0.01090029]
[1644738568820,0.02170698,2920.2,2919.3,0.00322485]
[1644738569120,0.02170698,2920.2,2919.9,0.01090015]
[1644738570030,0.02170698,2920.2,2919.3,0.00322485]
[1644738570475,0.02170698,2920.2,2919.9,0.01090008]
[1644738570868,0.0327909,2920.1,2919.9,0.01090008]
[1644738571271,0.0327909,2920.1,2919.3,0.00322485]
[1644738571470,0.0327909,2920.1,2919.9,0.01090015]
[1644738572473,0.0327909,2920.1,2919.3,0.00322485]
[1644738572679,0.0327909,2920.1,2919.9,0.01090015]
[1644738573676,0.0327909,2920.1,2919.3,0.00322485]
[1644738573877,0.0327909,2920.1,2919.9,0.00412369]
[1644738574923,0.0327909,2920.1,2919.3,0.00322485]
[1644738575123,0.0327909,2920.1,2919.9,0.00412369]
[1644738575924,3.4327909,2920.1,2919.9,0.00412369]
[1644738576123,3.4327909,2920.1,2919.3,0.00322485]
[1644738576323,3.4327909,2920.1,2919.9,0.01090627]
[1644738577324,3.4327909,2920.1,2919.3,0.00322485]
[1644738577524,3.4327909,2920.1,2919.9,0.01090627]
[1644738578573,3.4327909,2920.1,2919.3,0.00322485]
[1644738578771,3.4327909,2920.1,2919.9,0.01090627]
[1644738579776,3.4327909,2920.1,2919.3,0.00322485]
[1644738579978,3.4327909,2920.1,2919.9,0.01090627]
[1644738580978,3.4327909,2920.1,2919.3,0.00322485]
[1644738581195,3.4327909,2920.1,2919.9,0.01090627]
[1644738582021,3.4327909,2920.1,2919.3,0.00322485]
[1644738582322,3.4327909,2920.1,2919.9,0.01090627]
[1644738583323,3.4327909,2920.1,2919.3,0.00322485]
[1644738583623,1.45693936,2920.0,2919.9,0.01090627]
[1644738584425,1.45693936,2920.0,2919.3,0.00322485]
[1644738584826,1.45693936,2920.0,2919.8,0.01090634]
[1644738585671,1.45693936,2920.0,2919.3,0.00322485]
[1644738585866,1.47274057,2920.0,2919.3,0.00322485]
[1644738586068,1.45693936,2919.9,2919.8,0.01090641]
[1644738586868,1.45693936,2919.9,2919.3,0.00322485]
[1644738587167,1.45693936,2919.9,2919.7,0.01090648]
[1644738588273,1.45693936,2919.9,2919.7,0.01090655]
[1644738589223,1.45693936,2919.9,2919.3,0.00322485]
[1644738589629,1.45693936,2919.9,2919.7,0.01090655]
[1644738590430,1.45693936,2919.9,2919.3,0.00322485]
[1644738590933,1.45693936,2919.9,2919.7,0.01090655]
[1644738590934,0.01575475,2919.8,2919.7,0.01090655]
[1644738591129,1.47269411,2919.8,2919.7,0.01090655]
[1644738591729,1.47269411,2919.8,2919.3,0.00322485]
[1644738591929,0.01457847,2919.8,2919.6,0.01090662]
[1644738592131,1.45698787,2919.7,2919.6,0.01090662]
[1644738592532,0.01457847,2919.8,2919.6,0.01090662]
[1644738592967,0.01457847,2919.8,2919.3,0.00322485]
[1644738593170,1.4569742,2919.7,2919.6,0.01090669]
[1644738593370,0.01457847,2919.8,2919.6,0.01090669]
[1644738594069,0.01457847,2919.8,2919.3,0.00322485]
[1644738594272,0.01457847,2919.8,2919.6,0.01090669]
[1644738595275,0.01457847,2919.8,2919.3,0.00322485]
[1644738595478,0.01457847,2919.8,2919.6,0.01090669]
[1644738596076,0.03256044,2919.7,2919.6,0.01090669]
[1644738596476,0.03256044,2919.7,2919.3,0.00322485]
[1644738596720,0.03256044,2919.7,2919.5,0.01090676]
[1644738597522,0.03256044,2919.7,2919.3,0.00323182]
[1644738600330,0.03256044,2919.7,2919.4,0.01090697]
[1644738601374,0.03256044,2919.7,2919.3,0.49923182]
[1644738601579,0.03256044,2919.7,2919.4,3.38298439]
[1644738601776,0.03256044,2919.7,2919.4,0.18200709]
[1644738601975,0.03256044,2919.7,2919.4,3.3236435]
[1644738602382,0.03256044,2919.7,2919.5,0.496]
[1644738602578,3.4,2920.1,2919.7,4.1]
[1644738602777,3.4,2920.1,2919.8,5.51021833]
[1644738602978,3.41090432,2920.1,2919.9,0.496]
[1644738603177,3.41090432,2920.1,2920.0,3.38709647]
[1644738603380,3.41090432,2920.1,2920.0,3.98709647]
[1644738603578,3.41090432,2920.1,2920.0,4.48309647]
[1644738603780,3.4,2920.1,2920.0,4.48309647]
[1644738603976,3.4,2920.1,2920.0,3.88309647]
[1644738604226,3.4,2920.1,2920.0,4.18309647]
[1644738604629,3.4,2920.1,2920.0,4.01199647]
[1644738606232,3.4,2920.1,2920.0,3.71199647]
[1644738606632,3.4,2920.1,2920.0,4.01199647]
[1644738608278,3.4,2920.1,2920.0,4.31199647]
[1644738610289,3.4,2920.1,2920.0,1.096]
[1644738610687,3.4,2920.1,2920.0,1.13026387]
[1644738611727,3.4,2920.1,2920.0,4.39645148]
[1644738611927,3.4,2920.1,2920.0,4.3737555]
[1644738612130,3.4,2920.1,2920.0,4.33604989]
[1644738612627,3.4,2920.1,2920.0,1.13026387]
[1644738612828,3.4,2920.1,2920.0,4.35089142]
[1644738613029,3.4,2920.1,2920.0,4.38471268]
[1644738614332,3.4,2920.1,2920.0,5.38471268]
[1644738615131,3.4,2920.1,2920.0,3.78471268]
[1644738615333,3.4,2920.1,2920.0,5.38471268]
[1644738615785,3.4,2920.1,2920.0,25.39471268]
[1644738615988,3.4,2920.1,2920.0,31.70795802]
[1644738616887,3.4,2920.1,2920.0,32.56373802]
[1644738617483,3.4,2920.1,2920.0,32.73483802]
[1644738617887,3.4,2920.1,2920.0,12.72483802]
[1644738618085,3.4,2920.1,2920.0,11.58871268]
[1644738618886,1.128e-05,2920.2,2920.1,2.92290578]
[1644738619093,2.1614704,2922.1,2920.3,1.71116]
[1644738619094,0.65409121,2921.6,2920.3,1.71116]
[1644738619337,0.65409121,2921.6,2920.8,0.90409328]
[1644738619338,1.46029297,2921.6,2920.8,0.90409328]
[1644738619534,1.46029297,2921.6,2921.1,0.90409328]
[1644738619731,0.65023816,2921.9,2921.3,0.90409328]
[1644738619732,1.45643992,2921.5,2921.3,0.90409328]
[1644738619935,0.65409121,2921.9,2921.5,0.90409328]
[1644738620132,0.64933478,2921.3,2921.1,2.7573]
[1644738620330,0.64933478,2921.3,2921.2,0.496]
[1644738620529,2.10568178,2921.3,2921.2,0.496]
[1644738620732,2.11247391,2921.3,2921.2,0.496]
[1644738621534,2.11246669,2921.3,2921.2,3.90246453]
[1644738621733,2.10567456,2921.3,2921.2,3.90246453]
[1644738622035,2.10567456,2921.3,2921.2,4.90156517]
[1644738622233,5.50567456,2921.3,2921.2,4.90156517]
[1644738623076,4.04933478,2921.3,2921.2,4.90156517]
[1644738623874,5.50563723,2921.3,2921.2,4.90156517]
[1644738624077,4.04933478,2921.3,2921.2,4.90156517]
[1644738626379,4.04933478,2921.3,2921.2,4.93602208]
[1644738629237,3.92773478,2921.3,2921.2,4.93602208]
[1644738630876,3.92773478,2921.3,2921.2,4.90156517]
[1644738634431,3.92773478,2921.3,2921.2,25.76700517]
[1644738634432,3.74897142,2921.3,2921.2,25.76700517]
[1644738636431,3.21209493,2921.3,2921.2,25.76700517]
[1644738636632,3.21209493,2921.3,2921.2,24.91156517]
[1644738637432,3.21209493,2921.3,2921.2,4.90156517]
[1644738638276,3.21209493,2921.3,2921.2,24.91156517]
[1644738643431,3.03334494,2921.3,2921.2,24.91156517]
[1644738647381,2.02489242,2921.3,2921.2,24.91156517]
[1644738649079,2.02489242,2921.3,2921.2,25.02077488]
[1644738649932,2.02489242,2921.3,2921.2,27.80939624]
[1644738650132,2.02489242,2921.3,2921.2,34.01339624]
[1644738651331,2.02489242,2921.3,2921.2,31.22477488]
[1644738651534,0.20157497,2921.3,2921.2,31.22477488]
[1644738651735,0.20157497,2921.3,2921.2,39.01339624]
[1644738651935,0.00385305,2922.5,2921.6,0.85524]
[1644738652135,0.0436479,2921.8,2921.7,24.4352757]
[1644738652334,0.0436479,2921.8,2921.7,25.0352757]
[1644738652633,0.0436479,2921.8,2921.7,26.0352757]
[1644738653078,0.00385305,2922.5,2921.7,26.0352757]
[1644738653278,0.04364506,2922.3,2921.9,20.01]
[1644738653479,1.45597294,2922.2,2922.0,23.72648611]
[1644738653680,1.45597294,2922.2,2922.1,3.04166666]
[1644738653879,1.45597294,2922.2,2922.1,4.84581884]
[1644738654079,1.45597294,2922.2,2922.1,1.796]
[1644738654281,0.00385305,2922.6,2922.1,4.8478035]
[1644738654482,3.4,2922.2,2922.1,4.8478035]
[1644738654682,4.8559915,2922.2,2922.1,1.796]
[1644738655282,4.8559915,2922.2,2922.1,0.796]